[Event "Early-Titled-Tuesday-Blitz-May-07-2024"]
[Site "Chess.com"]
[Date "2024.05.07"]
[Round "2"]
[White "remyrushbrooke"]
[Black "GMAneta"]
[Result "0-1"]
[WhiteElo "2280"]
[BlackElo "2510"]
[TimeControl "180+1"]
[EndTime "8:20:04 PDT"]
[Termination "GMAneta won on time"]

1. Nf3 {[%clk 0:03:00.9]} 1... Nf6 {[%clk 0:02:59.5]} 2. g3 {[%clk 0:03:00.3]}
2... g6 {[%clk 0:02:50.9]} 3. Bg2 {[%clk 0:03:00.9]} 3... Bg7 {[%clk 0:02:40.2]}
4. d4 {[%clk 0:03:01.4]} 4... O-O {[%clk 0:02:34.9]} 5. c4 {[%clk 0:03:00.7]}
5... d5 {[%clk 0:02:20.2]} 6. cxd5 {[%clk 0:02:57.4]} 6... Nxd5 {[%clk
0:02:18.1]} 7. O-O {[%clk 0:02:51]} 7... c5 {[%clk 0:02:16]} 8. dxc5 {[%clk
0:02:18.3]} 8... Na6 {[%clk 0:02:08.2]} 9. Nc3 {[%clk 0:01:30.8]} 9... Nxc3
{[%clk 0:01:59.9]} 10. bxc3 {[%clk 0:01:31.7]} 10... Bxc3 {[%clk 0:01:58.6]} 11.
Bh6 {[%clk 0:01:31.6]} 11... Bg7 {[%clk 0:01:48]} 12. Bxg7 {[%clk 0:01:28.9]}
12... Kxg7 {[%clk 0:01:48.9]} 13. Qc2 {[%clk 0:01:26.6]} 13... Bf5 {[%clk
0:01:45.9]} 14. e4 {[%clk 0:01:26.5]} 14... Bg4 {[%clk 0:01:44.9]} 15. Rab1
{[%clk 0:01:24]} 15... Qc7 {[%clk 0:01:42.1]} 16. Qb2+ {[%clk 0:01:16.7]} 16...
Kg8 {[%clk 0:01:36.6]} 17. Qxb7 {[%clk 0:01:14.2]} 17... Qxb7 {[%clk 0:01:36.2]}
18. Rxb7 {[%clk 0:01:14.7]} 18... Nxc5 {[%clk 0:01:32.8]} 19. Rxe7 {[%clk
0:01:14.9]} 19... Rfe8 {[%clk 0:01:32.8]} 20. Rxe8+ {[%clk 0:01:14.6]} 20...
Rxe8 {[%clk 0:01:28.1]} 21. Nd2 {[%clk 0:01:07.4]} 21... Rd8 {[%clk 0:01:17.7]}
22. Nc4 {[%clk 0:01:05.2]} 22... Be2 {[%clk 0:01:16.8]} 23. Rc1 {[%clk
0:01:03.9]} 23... Ne6 {[%clk 0:01:04]} 24. Bf1 {[%clk 0:00:53.2]} 24... Nd4
{[%clk 0:00:55.1]} 25. Ne3 {[%clk 0:00:42.1]} 25... Bf3 {[%clk 0:00:48.1]} 26.
Bd3 {[%clk 0:00:30.9]} 26... Bxe4 {[%clk 0:00:34.7]} 27. Bxe4 {[%clk 0:00:06.1]}
27... Ne2+ {[%clk 0:00:32.2]} 28. Kg2 {[%clk 0:00:06.6]} 28... Nxc1 {[%clk
0:00:32.4]} 29. Bd5 {[%clk 0:00:05.7]} 29... Rb8 {[%clk 0:00:28.5]} 30. Kf3
{[%clk 0:00:03.4]} 30... Rb2 {[%clk 0:00:28]} 31. Ng4 {[%clk 0:00:01.7]} 31...
Nxa2 {[%clk 0:00:22.2]} 32. Nf6+ {[%clk 0:00:00.8]} 32... Kg7 {[%clk 0:00:22]}
33. Ne8+ {[%clk 0:00:00.7]} 33... Kf8 {[%clk 0:00:22.1]} 34. Nd6 {[%clk
0:00:00.6]} 34... f5 {[%clk 0:00:21.6]} 35. Nc4 {[%clk 0:00:00.2]} 35... Nc3
{[%clk 0:00:14.8]} 36. Kf4 {[%clk 0:00:00.6]} 36... Rxf2+ {[%clk 0:00:14.2]} 37.
Kg5 {[%clk 0:00:00.3]} 37... Rxh2 {[%clk 0:00:15.1]} 0-1

[Event "Early-Titled-Tuesday-Blitz-May-07-2024"]
[Site "Chess.com"]
[Date "2024.05.07"]
[Round "2"]
[White "BashirovKemal"]
[Black "Flaccidmoves"]
[Result "1-0"]
[WhiteElo "2684"]
[BlackElo "2398"]
[TimeControl "180+1"]
[EndTime "8:20:05 PDT"]
[Termination "BashirovKemal won by checkmate"]

1. e4 {[%clk 0:03:00.9]} 1... Nf6 {[%clk 0:02:56.6]} 2. e5 {[%clk 0:03:00.5]}
2... Nd5 {[%clk 0:02:56.5]} 3. d4 {[%clk 0:03:00.9]} 3... d6 {[%clk 0:02:56.8]}
4. c4 {[%clk 0:03:01.5]} 4... Nb6 {[%clk 0:02:56.8]} 5. f4 {[%clk 0:03:01.9]}
5... dxe5 {[%clk 0:02:56.7]} 6. fxe5 {[%clk 0:03:02.8]} 6... Bf5 {[%clk
0:02:57]} 7. Nf3 {[%clk 0:03:02.2]} 7... e6 {[%clk 0:02:56.7]} 8. Nc3 {[%clk
0:03:02.3]} 8... Bb4 {[%clk 0:02:53.4]} 9. Be3 {[%clk 0:03:01.6]} 9... c5 {[%clk
0:02:47.3]} 10. Be2 {[%clk 0:02:38.7]} 10... Nc6 {[%clk 0:02:35.4]} 11. O-O
{[%clk 0:02:35.3]} 11... cxd4 {[%clk 0:02:27.2]} 12. Nxd4 {[%clk 0:02:32.2]}
12... Nxd4 {[%clk 0:02:27.8]} 13. Bxd4 {[%clk 0:02:31.6]} 13... O-O {[%clk
0:02:28.3]} 14. a3 {[%clk 0:02:28.9]} 14... Be7 {[%clk 0:02:18.3]} 15. a4 {[%clk
0:02:15.7]} 15... Nd7 {[%clk 0:02:13]} 16. Nb5 {[%clk 0:02:07.7]} 16... Qb8
{[%clk 0:01:42]} 17. Bc3 {[%clk 0:01:55.8]} 17... Nxe5 {[%clk 0:01:33.6]} 18.
Qd4 {[%clk 0:01:47.7]} 18... Bf6 {[%clk 0:01:31.9]} 19. Qf2 {[%clk 0:01:38.1]}
19... Bg6 {[%clk 0:01:13.5]} 20. Rad1 {[%clk 0:01:27.3]} 20... a6 {[%clk
0:01:10.8]} 21. Nd6 {[%clk 0:01:23.6]} 21... Rd8 {[%clk 0:01:08.1]} 22. c5
{[%clk 0:01:23.3]} 22... b6 {[%clk 0:01:01.1]} 23. b4 {[%clk 0:01:05.9]} 23...
bxc5 {[%clk 0:01:01.2]} 24. bxc5 {[%clk 0:01:06.8]} 24... Qb3 {[%clk 0:00:55.3]}
25. Ba5 {[%clk 0:01:04.1]} 25... Rdc8 {[%clk 0:00:48]} 26. Nxc8 {[%clk
0:01:03.5]} 26... Rxc8 {[%clk 0:00:46.7]} 27. Bxa6 {[%clk 0:00:22.9]} 27... Ra8
{[%clk 0:00:46]} 28. Qd2 {[%clk 0:00:12.5]} 28... h5 {[%clk 0:00:34.5]} 29. Bb5
{[%clk 0:00:11.6]} 29... h4 {[%clk 0:00:25.8]} 30. Bc7 {[%clk 0:00:07]} 30... h3
{[%clk 0:00:16.5]} 31. Bxe5 {[%clk 0:00:07.3]} 31... Bxe5 {[%clk 0:00:17.4]} 32.
Bc6 {[%clk 0:00:08]} 32... Rc8 {[%clk 0:00:11.3]} 33. Bf3 {[%clk 0:00:05.3]}
33... hxg2 {[%clk 0:00:08.5]} 34. Qxg2 {[%clk 0:00:04.5]} 34... Rxc5 {[%clk
0:00:07.6]} 35. Rd8+ {[%clk 0:00:04.7]} 35... Kh7 {[%clk 0:00:05.6]} 36. Qh3+
{[%clk 0:00:05.3]} 36... Bh5 {[%clk 0:00:04.9]} 37. Qxh5# {[%clk 0:00:05.7]} 1-0

[Event "Early-Titled-Tuesday-Blitz-May-07-2024"]
[Site "Chess.com"]
[Date "2024.05.07"]
[Round "2"]
[White "kpio91"]
[Black "JiaHaoxiang"]
[Result "1-0"]
[WhiteElo "2867"]
[BlackElo "2588"]
[TimeControl "180+1"]
[EndTime "8:20:06 PDT"]
[Termination "kpio91 won by resignation"]

1. e4 {[%clk 0:03:00.9]} 1... c5 {[%clk 0:02:59.7]} 2. c3 {[%clk 0:02:59.2]}
2... Nf6 {[%clk 0:02:58.6]} 3. e5 {[%clk 0:02:58.3]} 3... Nd5 {[%clk 0:02:58.9]}
4. Nf3 {[%clk 0:02:58.3]} 4... e6 {[%clk 0:02:58.9]} 5. d4 {[%clk 0:02:56.6]}
5... cxd4 {[%clk 0:02:59.3]} 6. cxd4 {[%clk 0:02:56.7]} 6... d6 {[%clk
0:02:59.9]} 7. Bc4 {[%clk 0:02:56.7]} 7... Nc6 {[%clk 0:02:59.7]} 8. O-O {[%clk
0:02:56.3]} 8... Be7 {[%clk 0:02:59.9]} 9. Re1 {[%clk 0:02:48.5]} 9... O-O
{[%clk 0:02:59.5]} 10. Bxd5 {[%clk 0:02:42.5]} 10... exd5 {[%clk 0:02:59.1]} 11.
Nc3 {[%clk 0:02:42.8]} 11... Be6 {[%clk 0:02:52.3]} 12. h3 {[%clk 0:02:39.4]}
12... h6 {[%clk 0:02:50.9]} 13. Bf4 {[%clk 0:02:38.4]} 13... Re8 {[%clk
0:02:49.3]} 14. exd6 {[%clk 0:02:33.3]} 14... Bxd6 {[%clk 0:02:48.3]} 15. Bxd6
{[%clk 0:02:33.1]} 15... Qxd6 {[%clk 0:02:48.7]} 16. Rc1 {[%clk 0:02:33.9]}
16... Rac8 {[%clk 0:02:46.8]} 17. Qa4 {[%clk 0:02:30.1]} 17... a6 {[%clk
0:02:46.5]} 18. a3 {[%clk 0:02:23.5]} 18... Bf5 {[%clk 0:02:43.9]} 19. Rxe8+
{[%clk 0:02:02.2]} 19... Rxe8 {[%clk 0:02:43.1]} 20. Ne5 {[%clk 0:02:03]} 20...
Bd7 {[%clk 0:02:28.9]} 21. Nxc6 {[%clk 0:01:58.7]} 21... Bxc6 {[%clk 0:02:26.4]}
22. Qd1 {[%clk 0:01:57.8]} 22... Qg6 {[%clk 0:02:23.2]} 23. Qd2 {[%clk
0:01:55.9]} 23... Qf5 {[%clk 0:02:04.7]} 24. Nd1 {[%clk 0:01:48.9]} 24... Re4
{[%clk 0:02:01.8]} 25. Nc3 {[%clk 0:01:34.6]} 25... Re6 {[%clk 0:02:01.8]} 26.
Ne2 {[%clk 0:01:26.3]} 26... Rf6 {[%clk 0:01:57.5]} 27. Ng3 {[%clk 0:01:20.4]}
27... Qf4 {[%clk 0:01:56.4]} 28. Qxf4 {[%clk 0:01:09.6]} 28... Rxf4 {[%clk
0:01:57.3]} 29. Rd1 {[%clk 0:01:10.4]} 29... g6 {[%clk 0:01:57.6]} 30. f3 {[%clk
0:01:09.6]} 30... Kf8 {[%clk 0:01:54.4]} 31. Kf2 {[%clk 0:01:09.5]} 31... Rf6
{[%clk 0:01:54.7]} 32. Ne2 {[%clk 0:01:08.9]} 32... g5 {[%clk 0:01:53.8]} 33.
Nc1 {[%clk 0:01:05]} 33... Bb5 {[%clk 0:01:47.3]} 34. Na2 {[%clk 0:00:57]} 34...
Bc4 {[%clk 0:01:45.2]} 35. Nc3 {[%clk 0:00:56.9]} 35... Ke7 {[%clk 0:01:44.2]}
36. Rd2 {[%clk 0:00:56.7]} 36... Kd6 {[%clk 0:01:42]} 37. Nd1 {[%clk 0:00:56.9]}
37... Bb3 {[%clk 0:01:33.7]} 38. Ne3 {[%clk 0:00:56.7]} 38... Re6 {[%clk
0:01:32.3]} 39. Rd3 {[%clk 0:00:54.6]} 39... Ba4 {[%clk 0:01:31.4]} 40. Rc3
{[%clk 0:00:54.6]} 40... Bc6 {[%clk 0:01:31.4]} 41. g3 {[%clk 0:00:52.8]} 41...
Kd7 {[%clk 0:01:29.7]} 42. h4 {[%clk 0:00:51.1]} 42... gxh4 {[%clk 0:01:28.7]}
43. gxh4 {[%clk 0:00:41.8]} 43... Rg6 {[%clk 0:01:28.6]} 44. Ng4 {[%clk
0:00:40.5]} 44... Kd6 {[%clk 0:01:27.3]} 45. Re3 {[%clk 0:00:39.7]} 45... h5
{[%clk 0:01:25.5]} 46. Ne5 {[%clk 0:00:39.5]} 46... Rg7 {[%clk 0:01:26]} 47. Nd3
{[%clk 0:00:38.8]} 47... Rh7 {[%clk 0:01:17.8]} 48. Nf4 {[%clk 0:00:38.2]} 48...
Rh6 {[%clk 0:01:18.3]} 49. Re5 {[%clk 0:00:37.7]} 49... f6 {[%clk 0:01:14.2]}
50. Rxh5 {[%clk 0:00:37.2]} 50... Rxh5 {[%clk 0:01:14.9]} 51. Nxh5 {[%clk
0:00:37.5]} 51... Ke6 {[%clk 0:01:15.7]} 52. Kg3 {[%clk 0:00:36.2]} 52... Kf5
{[%clk 0:01:15.6]} 53. Ng7+ {[%clk 0:00:34.6]} 53... Kg6 {[%clk 0:01:15.2]} 54.
Ne6 {[%clk 0:00:35.3]} 54... b6 {[%clk 0:01:10.5]} 55. Kf4 {[%clk 0:00:34]}
55... a5 {[%clk 0:01:09.3]} 56. b4 {[%clk 0:00:26.7]} 56... axb4 {[%clk
0:01:08.4]} 57. axb4 {[%clk 0:00:27.6]} 57... Kh5 {[%clk 0:01:08.4]} 58. Kf5
{[%clk 0:00:26.7]} 58... Kxh4 {[%clk 0:01:07.8]} 59. Kxf6 {[%clk 0:00:26.9]}
59... Kg3 {[%clk 0:01:08.3]} 60. f4 {[%clk 0:00:26]} 60... Kf3 {[%clk 0:01:06]}
61. Ke5 {[%clk 0:00:26.1]} 61... Be8 {[%clk 0:01:02.7]} 62. f5 {[%clk
0:00:24.5]} 62... Bf7 {[%clk 0:01:02.9]} 63. Ng5+ {[%clk 0:00:24.6]} 1-0

[Event "Early-Titled-Tuesday-Blitz-May-07-2024"]
[Site "Chess.com"]
[Date "2024.05.07"]
[Round "2"]
[White "ChessQueen"]
[Black "Antosha_Chekhonte"]
[Result "1-0"]
[WhiteElo "2817"]
[BlackElo "2558"]
[TimeControl "180+1"]
[EndTime "8:20:06 PDT"]
[Termination "ChessQueen won on time"]

1. Nf3 {[%clk 0:03:00.9]} 1... Nf6 {[%clk 0:02:58.3]} 2. g3 {[%clk 0:02:59.8]}
2... d5 {[%clk 0:02:52.1]} 3. Bg2 {[%clk 0:02:59.6]} 3... c6 {[%clk 0:02:52.2]}
4. O-O {[%clk 0:02:59.3]} 4... Bg4 {[%clk 0:02:52.3]} 5. Ne5 {[%clk 0:02:52.6]}
5... Bh5 {[%clk 0:02:50.7]} 6. f4 {[%clk 0:02:45.7]} 6... Nbd7 {[%clk
0:02:24.4]} 7. h3 {[%clk 0:02:42.2]} 7... Nxe5 {[%clk 0:02:21.2]} 8. fxe5 {[%clk
0:02:41.4]} 8... Nd7 {[%clk 0:01:42.7]} 9. d4 {[%clk 0:02:37.2]} 9... e6 {[%clk
0:01:40.2]} 10. c3 {[%clk 0:02:30]} 10... Be7 {[%clk 0:01:33.6]} 11. Nd2 {[%clk
0:02:29.1]} 11... O-O {[%clk 0:01:32.6]} 12. Qe1 {[%clk 0:02:24.4]} 12... f5
{[%clk 0:01:21.8]} 13. exf6 {[%clk 0:02:23.4]} 13... Bxf6 {[%clk 0:01:21.2]} 14.
e4 {[%clk 0:02:23]} 14... Bg5 {[%clk 0:01:07.3]} 15. e5 {[%clk 0:02:07.4]} 15...
Qe7 {[%clk 0:00:59.1]} 16. g4 {[%clk 0:01:59.1]} 16... Bg6 {[%clk 0:00:56.9]}
17. Nf3 {[%clk 0:01:57.5]} 17... Bf4 {[%clk 0:00:53.4]} 18. Bxf4 {[%clk
0:01:51.9]} 18... Rxf4 {[%clk 0:00:53]} 19. Qg3 {[%clk 0:01:52.5]} 19... Raf8
{[%clk 0:00:52.7]} 20. Nh4 {[%clk 0:01:42.7]} 20... Rxf1+ {[%clk 0:00:52.5]} 21.
Rxf1 {[%clk 0:01:43.6]} 21... Rxf1+ {[%clk 0:00:52.4]} 22. Bxf1 {[%clk
0:01:43.6]} 22... Nf8 {[%clk 0:00:41.5]} 23. Ng2 {[%clk 0:01:34.5]} 23... Be4
{[%clk 0:00:37.1]} 24. h4 {[%clk 0:01:18.8]} 24... c5 {[%clk 0:00:36.7]} 25. h5
{[%clk 0:01:03.7]} 25... h6 {[%clk 0:00:25.2]} 26. Qe3 {[%clk 0:00:57.2]} 26...
cxd4 {[%clk 0:00:23.6]} 27. cxd4 {[%clk 0:00:42.7]} 27... Nh7 {[%clk 0:00:23.2]}
28. Nf4 {[%clk 0:00:36]} 28... Qh4 {[%clk 0:00:18.9]} 29. Qh3 {[%clk 0:00:25.4]}
29... Qe1 {[%clk 0:00:17.5]} 30. Nxe6 {[%clk 0:00:25.5]} 30... Qd2 {[%clk
0:00:12.9]} 31. Qc3 {[%clk 0:00:24]} 31... Qxc3 {[%clk 0:00:08]} 32. bxc3 {[%clk
0:00:23.9]} 32... Kf7 {[%clk 0:00:08.2]} 33. Nd8+ {[%clk 0:00:23.8]} 33... Ke7
{[%clk 0:00:08.5]} 34. Nxb7 {[%clk 0:00:24.7]} 34... Ng5 {[%clk 0:00:08]} 35.
Kf2 {[%clk 0:00:23.5]} 35... Ne6 {[%clk 0:00:03.4]} 36. Nd6 {[%clk 0:00:22]}
36... Kd7 {[%clk 0:00:02.7]} 37. Nxe4 {[%clk 0:00:21.4]} 37... dxe4 {[%clk
0:00:02.6]} 38. Ke3 {[%clk 0:00:21.9]} 38... Ng5 {[%clk 0:00:02.6]} 39. d5
{[%clk 0:00:21.6]} 39... Ke7 {[%clk 0:00:02.4]} 40. Bc4 {[%clk 0:00:19.3]} 40...
Kd7 {[%clk 0:00:00.3]} 41. Kf4 {[%clk 0:00:16.9]} 1-0

[Event "Early-Titled-Tuesday-Blitz-May-07-2024"]
[Site "Chess.com"]
[Date "2024.05.07"]
[Round "2"]
[White "CrushingKings"]
[Black "IndianSchoolOfSuffering"]
[Result "0-1"]
[WhiteElo "2640"]
[BlackElo "2392"]
[TimeControl "180+1"]
[EndTime "8:20:06 PDT"]
[Termination "IndianSchoolOfSuffering won on time"]

1. Nf3 {[%clk 0:03:00.9]} 1... d5 {[%clk 0:02:58.9]} 2. g3 {[%clk 0:03:00.8]}
2... Nf6 {[%clk 0:02:59]} 3. Bg2 {[%clk 0:03:00.9]} 3... Bf5 {[%clk 0:02:59]} 4.
O-O {[%clk 0:03:00.5]} 4... e6 {[%clk 0:02:59.4]} 5. d3 {[%clk 0:03:00.3]} 5...
c6 {[%clk 0:02:59.3]} 6. Nh4 {[%clk 0:02:56.2]} 6... Bg4 {[%clk 0:02:58]} 7. h3
{[%clk 0:02:56.8]} 7... Bh5 {[%clk 0:02:57.9]} 8. g4 {[%clk 0:02:57.5]} 8...
Nfd7 {[%clk 0:02:52.9]} 9. Nf3 {[%clk 0:02:51.3]} 9... Bg6 {[%clk 0:02:52.5]}
10. c4 {[%clk 0:02:52]} 10... Bd6 {[%clk 0:02:51.1]} 11. Nc3 {[%clk 0:02:52.2]}
11... Ne5 {[%clk 0:02:41.8]} 12. Nxe5 {[%clk 0:02:40.1]} 12... Bxe5 {[%clk
0:02:41.4]} 13. d4 {[%clk 0:02:40.3]} 13... Bd6 {[%clk 0:02:38.5]} 14. e4 {[%clk
0:02:40]} 14... dxe4 {[%clk 0:02:37.3]} 15. Nxe4 {[%clk 0:02:38.1]} 15... Be7
{[%clk 0:02:35.1]} 16. Bf4 {[%clk 0:02:36.9]} 16... O-O {[%clk 0:02:32.1]} 17.
Qd2 {[%clk 0:02:30.3]} 17... Nd7 {[%clk 0:02:30.2]} 18. Rad1 {[%clk 0:02:28.1]}
18... Nf6 {[%clk 0:02:29.7]} 19. Ng3 {[%clk 0:02:25.8]} 19... Qb6 {[%clk
0:02:24.6]} 20. a3 {[%clk 0:02:22.4]} 20... Rad8 {[%clk 0:02:23.3]} 21. Qc3
{[%clk 0:02:20.4]} 21... Rd7 {[%clk 0:02:11]} 22. Rd2 {[%clk 0:02:04.8]} 22...
Rfd8 {[%clk 0:02:09.9]} 23. Rfd1 {[%clk 0:02:05.5]} 23... a5 {[%clk 0:02:01]}
24. Be5 {[%clk 0:01:57.4]} 24... a4 {[%clk 0:01:57.6]} 25. Kh1 {[%clk
0:01:53.9]} 25... Qb3 {[%clk 0:01:45.2]} 26. f4 {[%clk 0:01:11.3]} 26... Qxc3
{[%clk 0:01:30.8]} 27. bxc3 {[%clk 0:01:12.1]} 27... Ne8 {[%clk 0:01:26.7]} 28.
f5 {[%clk 0:01:10.7]} 28... exf5 {[%clk 0:01:22.9]} 29. gxf5 {[%clk 0:01:10.6]}
29... f6 {[%clk 0:01:20.3]} 30. fxg6 {[%clk 0:01:07.3]} 30... fxe5 {[%clk
0:01:16.7]} 31. gxh7+ {[%clk 0:01:07.8]} 31... Kxh7 {[%clk 0:01:16.5]} 32. d5
{[%clk 0:01:07.8]} 32... Nf6 {[%clk 0:01:10.1]} 33. Ne4 {[%clk 0:00:45.9]} 33...
Bxa3 {[%clk 0:01:05.9]} 34. Nxf6+ {[%clk 0:00:40.9]} 34... gxf6 {[%clk
0:01:04.3]} 35. Be4+ {[%clk 0:00:41.5]} 35... Kh6 {[%clk 0:01:00.8]} 36. Ra2
{[%clk 0:00:33.4]} 36... cxd5 {[%clk 0:00:57.8]} 37. cxd5 {[%clk 0:00:32.4]}
37... Bc5 {[%clk 0:00:57.1]} 38. Rxa4 {[%clk 0:00:32.3]} 38... f5 {[%clk
0:00:54.8]} 39. Bxf5 {[%clk 0:00:07.8]} 39... Rxd5 {[%clk 0:00:54.7]} 40. Rxd5
{[%clk 0:00:07.3]} 40... Rxd5 {[%clk 0:00:54.1]} 41. Kg2 {[%clk 0:00:07.7]}
41... Rd2+ {[%clk 0:00:50.9]} 42. Kf3 {[%clk 0:00:07.6]} 42... Kg5 {[%clk
0:00:42.5]} 43. Bg4 {[%clk 0:00:02.4]} 43... Rd3+ {[%clk 0:00:37.9]} 44. Ke4
{[%clk 0:00:02.2]} 44... Re3+ {[%clk 0:00:33.4]} 45. Kd5 {[%clk 0:00:02.2]}
45... Rxc3 {[%clk 0:00:33.2]} 46. Ra8 {[%clk 0:00:02.8]} 46... Bd4 {[%clk
0:00:29.7]} 0-1

[Event "Early-Titled-Tuesday-Blitz-May-07-2024"]
[Site "Chess.com"]
[Date "2024.05.07"]
[Round "2"]
[White "sudtirolese06"]
[Black "juancruzarias"]
[Result "0-1"]
[WhiteElo "2424"]
[BlackElo "2712"]
[TimeControl "180+1"]
[EndTime "8:20:07 PDT"]
[Termination "juancruzarias won by checkmate"]

1. g3 {[%clk 0:03:00.9]} 1... d5 {[%clk 0:02:59.3]} 2. Bg2 {[%clk 0:03:01.3]}
2... c5 {[%clk 0:02:59.3]} 3. d3 {[%clk 0:03:00.4]} 3... Nc6 {[%clk 0:02:58.5]}
4. Nf3 {[%clk 0:03:00.8]} 4... e5 {[%clk 0:02:55.7]} 5. O-O {[%clk 0:03:01.1]}
5... Be7 {[%clk 0:02:50.9]} 6. e4 {[%clk 0:03:00]} 6... d4 {[%clk 0:02:49.8]} 7.
a4 {[%clk 0:02:59.6]} 7... h5 {[%clk 0:02:46.9]} 8. Na3 {[%clk 0:02:54.9]} 8...
h4 {[%clk 0:02:41.8]} 9. Nc4 {[%clk 0:02:55.4]} 9... hxg3 {[%clk 0:02:41.4]} 10.
fxg3 {[%clk 0:02:53.9]} 10... Qc7 {[%clk 0:02:40.2]} 11. c3 {[%clk 0:02:53.5]}
11... Be6 {[%clk 0:02:39.4]} 12. cxd4 {[%clk 0:02:52.4]} 12... cxd4 {[%clk
0:02:36.7]} 13. b3 {[%clk 0:02:50]} 13... Bxc4 {[%clk 0:02:30.8]} 14. bxc4
{[%clk 0:02:50.9]} 14... Nf6 {[%clk 0:02:31]} 15. Bd2 {[%clk 0:02:44.5]} 15...
Nd7 {[%clk 0:02:30.7]} 16. a5 {[%clk 0:02:43.5]} 16... Nc5 {[%clk 0:02:29.9]}
17. a6 {[%clk 0:02:40.5]} 17... b6 {[%clk 0:02:28]} 18. Ng5 {[%clk 0:02:39.6]}
18... Bxg5 {[%clk 0:02:26.5]} 19. Bxg5 {[%clk 0:02:39.3]} 19... f6 {[%clk
0:02:27.1]} 20. Bc1 {[%clk 0:02:39.3]} 20... Nb4 {[%clk 0:02:20.9]} 21. Rf3
{[%clk 0:02:35.6]} 21... Nbxa6 {[%clk 0:02:20.2]} 22. Ba3 {[%clk 0:02:34.7]}
22... Nb8 {[%clk 0:02:12.6]} 23. h4 {[%clk 0:02:33.4]} 23... Nc6 {[%clk
0:02:01]} 24. Bxc5 {[%clk 0:02:31.9]} 24... bxc5 {[%clk 0:02:00.9]} 25. Qa4
{[%clk 0:02:32.8]} 25... O-O {[%clk 0:01:59.5]} 26. Bh3 {[%clk 0:02:30]} 26...
Qd6 {[%clk 0:01:55.7]} 27. Bf5 {[%clk 0:02:22.8]} 27... Ne7 {[%clk 0:01:49.5]}
28. Qd1 {[%clk 0:02:15.6]} 28... Nxf5 {[%clk 0:01:42.7]} 29. Rxf5 {[%clk
0:02:16.5]} 29... g6 {[%clk 0:01:34.1]} 30. Qg4 {[%clk 0:02:16.9]} 30... Kh7
{[%clk 0:01:31.6]} 31. h5 {[%clk 0:02:02]} 31... gxf5 {[%clk 0:01:03.4]} 32.
Qxf5+ {[%clk 0:02:02.9]} 32... Kh8 {[%clk 0:01:01.9]} 33. Qg6 {[%clk 0:01:45.2]}
33... Qe7 {[%clk 0:01:01.3]} 34. Kf2 {[%clk 0:01:35.5]} 34... a5 {[%clk
0:00:59.7]} 35. Rb1 {[%clk 0:01:33.5]} 35... a4 {[%clk 0:00:57.7]} 36. Ra1
{[%clk 0:01:02.8]} 36... a3 {[%clk 0:00:57.1]} 37. Kf3 {[%clk 0:00:44.9]} 37...
a2 {[%clk 0:00:50]} 38. Qf5 {[%clk 0:00:25.2]} 38... Qh7 {[%clk 0:00:44.3]} 39.
Qh3 {[%clk 0:00:20.7]} 39... f5 {[%clk 0:00:43.7]} 40. Kg2 {[%clk 0:00:11.9]}
40... fxe4 {[%clk 0:00:43.2]} 41. Qe6 {[%clk 0:00:12.6]} 41... exd3 {[%clk
0:00:40.5]} 42. Qxe5+ {[%clk 0:00:12.7]} 42... Qg7 {[%clk 0:00:40.8]} 43. Qd6
{[%clk 0:00:12]} 43... Rfe8 {[%clk 0:00:40.3]} 44. Qc6 {[%clk 0:00:11.6]} 44...
Re2+ {[%clk 0:00:39.8]} 45. Kh3 {[%clk 0:00:11.5]} 45... Rg8 {[%clk 0:00:40.2]}
46. Qf3 {[%clk 0:00:07.5]} 46... Qd7+ {[%clk 0:00:38.5]} 47. Kh4 {[%clk
0:00:07.3]} 47... Rh2# {[%clk 0:00:31.4]} 0-1

[Event "Early-Titled-Tuesday-Blitz-May-07-2024"]
[Site "Chess.com"]
[Date "2024.05.07"]
[Round "2"]
[White "NajdorfPlayerc5"]
[Black "cthake"]
[Result "1-0"]
[WhiteElo "2424"]
[BlackElo "1864"]
[TimeControl "180+1"]
[EndTime "8:20:08 PDT"]
[Termination "NajdorfPlayerc5 won by checkmate"]

1. e4 {[%clk 0:03:00.9]} 1... e6 {[%clk 0:02:59.9]} 2. d4 {[%clk 0:02:59.9]}
2... d5 {[%clk 0:03:00.6]} 3. Nc3 {[%clk 0:03:00.5]} 3... Bb4 {[%clk 0:03:00.2]}
4. e5 {[%clk 0:02:59.4]} 4... Qd7 {[%clk 0:03:00.6]} 5. a3 {[%clk 0:02:57.8]}
5... Bf8 {[%clk 0:02:59.8]} 6. f4 {[%clk 0:02:49.9]} 6... Ne7 {[%clk 0:02:53.5]}
7. Nf3 {[%clk 0:02:50.8]} 7... h5 {[%clk 0:02:46.5]} 8. Bd3 {[%clk 0:02:48.9]}
8... g6 {[%clk 0:02:44.6]} 9. Be3 {[%clk 0:02:48.1]} 9... Nf5 {[%clk 0:02:44.6]}
10. Bf2 {[%clk 0:02:47.4]} 10... b6 {[%clk 0:02:38.4]} 11. Qd2 {[%clk
0:02:35.3]} 11... Bb7 {[%clk 0:02:37.6]} 12. O-O-O {[%clk 0:02:32.4]} 12... Nc6
{[%clk 0:02:33.2]} 13. h3 {[%clk 0:02:32]} 13... O-O-O {[%clk 0:01:58.6]} 14. g4
{[%clk 0:02:29.5]} 14... hxg4 {[%clk 0:01:58.6]} 15. hxg4 {[%clk 0:02:30.4]}
15... Rxh1 {[%clk 0:01:57.8]} 16. Rxh1 {[%clk 0:02:31.3]} 16... Nfe7 {[%clk
0:01:43.5]} 17. Bh4 {[%clk 0:02:20.2]} 17... Re8 {[%clk 0:01:30.8]} 18. Ne2
{[%clk 0:01:38.1]} 18... Ng8 {[%clk 0:01:28.9]} 19. Bg5 {[%clk 0:01:15.1]} 19...
Be7 {[%clk 0:01:24.6]} 20. c3 {[%clk 0:01:11.7]} 20... Bxg5 {[%clk 0:01:19.8]}
21. Nxg5 {[%clk 0:00:37.1]} 21... Na5 {[%clk 0:01:19.7]} 22. Kb1 {[%clk
0:00:33.8]} 22... Nc4 {[%clk 0:01:18.4]} 23. Bxc4 {[%clk 0:00:25.1]} 23... dxc4
{[%clk 0:01:18.1]} 24. Rh7 {[%clk 0:00:25.8]} 24... Rf8 {[%clk 0:01:02.8]} 25.
Ng3 {[%clk 0:00:18.1]} 25... a5 {[%clk 0:00:56]} 26. Qf2 {[%clk 0:00:13.8]}
26... Kb8 {[%clk 0:00:49.2]} 27. f5 {[%clk 0:00:14]} 27... gxf5 {[%clk
0:00:48.7]} 28. gxf5 {[%clk 0:00:14.9]} 28... exf5 {[%clk 0:00:41]} 29. Qxf5
{[%clk 0:00:15.8]} 29... Qxf5+ {[%clk 0:00:39.9]} 30. Nxf5 {[%clk 0:00:16.7]}
30... f6 {[%clk 0:00:34.4]} 31. Ne6 {[%clk 0:00:08.5]} 31... Rc8 {[%clk
0:00:30.7]} 32. Kc1 {[%clk 0:00:03.8]} 32... fxe5 {[%clk 0:00:30.4]} 33. dxe5
{[%clk 0:00:03.5]} 33... Be4 {[%clk 0:00:30.2]} 34. Rh5 {[%clk 0:00:02.9]} 34...
b5 {[%clk 0:00:24.6]} 35. Ned4 {[%clk 0:00:02.9]} 35... Kb7 {[%clk 0:00:22.7]}
36. e6 {[%clk 0:00:02.7]} 36... c6 {[%clk 0:00:21.9]} 37. e7 {[%clk 0:00:02.9]}
37... Re8 {[%clk 0:00:21.4]} 38. Rh7 {[%clk 0:00:02.8]} 38... Nf6 {[%clk
0:00:20.7]} 39. Nd6+ {[%clk 0:00:02.7]} 39... Kc7 {[%clk 0:00:16.5]} 40. Nxe8+
{[%clk 0:00:03.6]} 40... Kd7 {[%clk 0:00:16.8]} 41. Nxf6+ {[%clk 0:00:03.5]}
41... Kd6 {[%clk 0:00:15.3]} 42. e8=Q {[%clk 0:00:04.4]} 42... Kc5 {[%clk
0:00:15.3]} 43. Qe7+ {[%clk 0:00:03.4]} 43... Kb6 {[%clk 0:00:15.3]} 44. Qa7#
{[%clk 0:00:03.6]} 1-0